bitfinex/quotes_ETHUSD_20240816
["timestamp","ask_amount","ask_price","bid_price","bid_amount"]
[1723798161586,10.34607,2626.2,2625.5,19.74]
[1723798161788,3.80799,2626.1,2625.6,3.80858]
[1723798161987,3.80808,2626.0,2625.5,30.05778]
[1723798162286,3.80808,2626.0,2625.5,26.249]
[1723798162655,3.80808,2626.0,2625.5,30.05776]
[1723798164090,3.80808,2626.0,2625.5,26.249]
[1723798164289,10.50284,2625.8,2625.5,19.74]
[1723798164453,11.553124,2625.8,2625.5,19.74]
[1723798164789,3.80844,2625.8,2625.5,19.74]
[1723798164962,10.50255,2626.0,2625.5,19.74]
[1723798164963,3.80821,2625.9,2625.5,19.74]
[1723798166189,6.2295,2626.2,2625.6,6.4978]
[1723798166391,3.80775,2626.3,2625.7,22.36378]
[1723798166701,3.80779,2626.2,2625.7,23.54848]
[1723798167086,3.80779,2626.2,2625.7,19.74]
[1723798168401,7.61548,2626.3,2625.7,23.54849]
[1723798168598,3.80773,2626.3,2625.7,23.54849]
[1723798169316,3.80773,2626.3,2625.8,19.74]
[1723798169515,3.80785,2626.2,2625.8,19.74]
[1723798171594,3.80793,2626.1,2625.8,19.74]
[1723798173617,3.80773,2626.3,2625.8,19.74]
[1723798173817,3.80772,2626.3,2625.8,19.74]
[1723798174785,3.80778,2626.2,2625.8,19.74]
[1723798175184,3.80778,2626.2,2625.9,19.74]
[1723798175389,3.80778,2626.2,2625.8,19.74]
[1723798176416,5.40214276,2626.2,2625.8,19.74]
[1723798176592,3.80778,2626.2,2625.8,19.74]
[1723798178388,3.80772,2626.3,2625.8,19.74]
[1723798178993,3.80785,2626.2,2625.8,19.74]
[1723798181339,3.80785,2626.2,2625.9,19.74]
[1723798181700,3.80779,2626.2,2625.9,19.74]
[1723798187129,3.80779,2626.2,2625.8,19.74]
[1723798188643,3.80764,2626.3,2625.8,23.54836]
[1723798188867,2.09862757,2626.4,2626.0,6.1168]
[1723798189049,2.09862757,2626.4,2626.3,3.80763]
[1723798189245,3.80684,2626.9,2626.3,3.80763]
[1723798189459,3.80684,2626.9,2626.4,19.74]
[1723798191764,3.80706,2626.7,2626.4,19.74]
[1723798191929,4.56845,2626.7,2626.4,19.74]
[1723798192434,6.587,2626.6,2626.4,19.74]
[1723798192734,3.80734,2626.5,2626.4,19.74]
[1723798193169,3.80734,2626.5,2626.1,19.74]
[1723798193388,3.80749,2626.4,2626.1,19.74]
[1723798193882,7.61508,2626.4,2626.1,19.74]
[1723798194080,3.80749,2626.4,2626.1,19.74]
[1723798196247,1.496307,2626.5,2626.1,19.74]
[1723798196454,10.39431,2626.6,2626.1,19.74]
[1723798197539,3.8075,2626.4,2626.1,19.74]
[1723798198683,3.80734,2626.5,2626.1,19.74]
[1723798199455,3.80734,2626.5,2626.1,26.2943]
[1723798200790,3.8075,2626.4,2626.1,26.2943]
[1723798200969,0.45687,2626.5,2626.1,26.2943]
[1723798201148,3.80731,2626.6,2626.1,26.2943]
[1723798201786,7.61556,2626.2,2626.1,6.5543]
[1723798202279,11.42334,2626.2,2626.1,6.5543]
[1723798202865,7.61556,2626.2,2626.1,6.5543]
[1723798204677,11.42334,2626.2,2626.1,6.5543]
[1723798205638,3.8086,2625.7,2625.1,3.80929]
[1723798205779,3.80859,2625.7,2625.1,3.80929]
[1723798206184,3.80859,2625.7,2625.2,3.80921]
[1723798206386,7.61665,2625.9,2625.3,3.809]
[1723798206676,7.61665,2625.9,2625.4,0.761821]
[1723798206902,7.61665,2625.9,2625.3,3.809]
[1723798207599,3.80808,2626.0,2625.4,7.61778]
[1723798207835,3.80808,2626.0,2625.5,0.761778]
[1723798208052,3.80803,2626.1,2625.4,3.80885]
[1723798208274,3.80803,2626.1,2625.6,3.80858]
[1723798209177,3.808,2626.1,2625.6,3.80858]
[1723798209320,7.616,2626.1,2625.6,3.80858]
[1723798209662,3.808,2626.1,2625.6,3.80858]
[1723798209873,3.808,2626.1,2625.6,4.570323]
[1723798210175,3.80785,2626.2,2625.6,8.378893]
[1723798210323,3.80785,2626.2,2625.6,3.80857]
[1723798210684,3.80793,2626.1,2625.6,3.80857]
[1723798211166,3.80793,2626.1,2625.7,19.74]
[1723798211867,3.80807,2626.0,2625.7,19.74]
[1723798212281,3.80836,2625.9,2625.7,19.74]
[1723798212567,3.80836,2625.8,2625.7,19.74]
[1723798212939,3.80821,2625.9,2625.7,19.74]
[1723798213523,3.80836,2625.8,2625.7,19.74]
[1723798213918,3.80779,2626.2,2625.7,23.54849]
[1723798214136,3.80773,2626.3,2625.8,6.163139]
[1723798214534,3.808,2626.1,2625.7,19.74]
[1723798215225,3.80774,2626.3,2625.7,19.74]
[1723798215425,3.80774,2626.3,2625.8,3.80835]
[1723798215635,3.80774,2626.3,2625.8,6.544041]
[1723798215835,7.61546,2626.3,2625.8,6.544041]
[1723798216163,3.80772,2626.3,2625.8,6.544041]
[1723798216946,3.80772,2626.3,2625.9,19.74]
[1723798217725,3.8078,2626.2,2625.9,19.74]
[1723798217922,3.80793,2626.1,2625.9,19.74]
[1723798218259,3.80807,2626.0,2625.9,19.74]
[1723798220151,3.41284861,2626.7,2625.9,19.74]
[1723798220152,3.80789,2626.2,2625.9,19.74]
[1723798220346,3.80774,2626.3,2625.9,19.74]
[1723798221164,3.80749,2626.4,2625.9,23.54817]
[1723798221328,3.80741,2626.5,2626.0,3.80806]
[1723798221527,3.80741,2626.5,2626.0,6.54371]
[1723798221740,3.80727,2626.6,2626.0,6.54365]
[1723798221947,6.45858861,2626.7,2626.2,3.80777]
[1723798222154,6.45858861,2626.7,2626.2,23.54771]
[1723798222353,2.65145861,2626.7,2626.2,23.5477]
[1723798222667,2.65145861,2626.7,2626.3,2.40330571]
[1723798223451,2.65145861,2626.7,2626.3,6.21093571]
[1723798224494,2.65145861,2626.7,2626.3,2.40330571]
[1723798224794,6.45850861,2626.7,2626.3,2.40330571]
[1723798225192,6.45850861,2626.7,2626.2,23.5477]
[1723798225592,10.26567861,2626.7,2626.2,23.5477]
[1723798225906,3.8072,2626.6,2626.3,19.74]
[1723798227640,6.45851861,2626.7,2626.3,19.74]
[1723798228000,3.80736,2626.5,2626.3,19.74]
[1723798228237,1.02654686,2626.6,2626.3,19.74]
[1723798228238,3.80729,2626.6,2626.3,19.74]
[1723798228523,6.45851861,2626.7,2626.3,19.74]
[1723798229426,3.80724,2626.6,2626.3,19.74]
[1723798229641,3.8074,2626.5,2626.3,19.74]
[1723798231832,3.8074,2626.5,2626.1,19.74]
[1723798232059,3.8077,2626.3,2626.1,19.74]
[1723798232560,3.80778,2626.2,2626.1,19.74]
[1723798233043,13.76686,2626.2,2626.1,19.74]
[1723798234149,3.80824,2625.9,2625.7,19.74]
[1723798234445,3.80824,2625.9,2625.8,19.74]
[1723798234602,3.80808,2626.0,2625.8,19.74]
[1723798236235,3.80799,2626.1,2625.8,19.74]
[1723798237968,3.80799,2626.1,2625.7,6.7231]
[1723798240149,9.95911,2626.2,2625.7,10.53157]
[1723798240380,3.80802,2626.1,2625.6,19.74]
[1723798240613,3.80807,2626.0,2625.6,19.74]
[1723798242105,3.80807,2626.0,2625.6,23.54864]
[1723798243094,6.1513,2626.2,2625.6,19.74]
[1723798243291,3.80815,2626.0,2625.6,19.74]
[1723798243619,3.80815,2626.0,2625.7,19.74]
[1723798245493,3.80844,2625.8,2625.6,19.74]
[1723798245923,3.88459787,2625.8,2625.6,19.74]
[1723798247600,3.8085,2625.7,2625.6,19.74]
[1723798248011,13.82588,2625.9,2625.6,19.74]
[1723798248298,13.82582,2625.9,2625.6,19.74]
[1723798248537,3.8083,2625.9,2625.6,19.74]
[1723798249044,10.16134,2626.1,2625.6,19.74]
[1723798249045,3.80807,2626.0,2625.6,19.74]
[1723798249913,3.80822,2625.9,2625.6,19.74]
[1723798251114,7.61656,2625.9,2625.6,19.74]
[1723798251441,3.80822,2625.9,2625.6,19.74]
[1723798255753,3.80822,2625.9,2625.6,19.752]
[1723798257806,3.80842,2625.8,2625.6,19.752]
[1723798258002,6.4044,2625.7,2625.6,19.752]
[1723798259659,10.37672,2625.9,2625.6,19.752]
[1723798259962,3.80822,2625.9,2625.6,19.752]
[1723798260492,3.80842,2625.8,2625.6,19.752]
[1723798260643,3.8085,2625.7,2625.6,19.752]
[1723798261255,3.80837,2625.8,2625.6,19.752]
[1723798261610,3.80837,2625.8,2625.6,0.012]
[1723798264067,3.8085,2625.7,2625.6,0.012]
[1723798264410,5.311417,2625.7,2625.6,0.012]
[1723798265255,15.30337487,2625.7,2625.6,0.012]
[1723798265560,16.60837487,2625.7,2625.6,0.012]
[1723798265705,20.41687487,2625.7,2625.6,0.012]
[1723798268062,19.11187487,2625.7,2625.6,0.012]
[1723798270257,22.92037487,2625.7,2625.6,0.012]
[1723798270617,22.92037487,2625.7,2624.1,12.14]
[1723798270618,3.81051,2624.4,2624.1,6.3481]
[1723798270904,7.62101,2624.4,2624.1,6.3481]
[1723798271062,3.8105,2624.4,2624.1,6.3481]
[1723798271519,3.81063,2624.3,2623.8,10.22372]
[1723798271694,3.8105,2624.4,2623.9,7.62215]
[1723798271914,3.81019,2624.6,2624.0,6.4125]
[1723798272071,3.81019,2624.6,2624.1,3.81075]
[1723798272412,3.81026,2624.5,2624.0,6.4125]
[1723798272570,3.81026,2624.5,2624.0,11.6650183]
[1723798273482,3.81055,2624.3,2624.0,6.4125]
[1723798273911,7.62061,2624.5,2624.0,6.4125]
[1723798274114,3.81026,2624.5,2624.0,6.4125]
[1723798274703,3.81026,2624.5,2624.0,10.22346]
[1723798275033,3.81005,2624.7,2624.0,10.22346]
[1723798275034,3.81012,2624.6,2624.2,6.589]
[1723798275802,3.81025,2624.5,2624.2,6.589]
[1723798276016,7.62059,2624.5,2624.0,6.1868]
[1723798276217,3.81032,2624.5,2624.0,6.1868]
[1723798276449,3.81055,2624.3,2624.0,6.1868]
[1723798277554,8.001722,2624.5,2624.0,6.1868]
[1723798277757,3.81039,2624.4,2624.0,6.1868]
[1723798280303,3.81054,2624.3,2624.0,6.1868]
[1723798280809,3.81039,2624.4,2624.0,6.1868]
[1723798282324,6.4035,2624.6,2624.0,7.2247043]
[1723798282325,3.81016,2624.6,2624.0,7.2247043]
[1723798282546,6.39273737,2624.7,2624.2,10.16328]
[1723798282724,2.58271737,2624.7,2624.3,10.1631]
[1723798282932,2.58271737,2624.7,2624.4,1.397377]
[1723798283867,2.58271737,2624.7,2624.4,5.207757]
[1723798284698,2.58271737,2624.7,2624.5,6.1202]
[1723798285805,2.58271737,2624.7,2624.5,6.1252]
[1723798286027,2.58271737,2624.7,2624.5,6.91092584]
[1723798286285,2.58271737,2624.7,2624.5,10.72115584]
[1723798286487,2.58271737,2624.7,2624.6,13.8595]
[1723798286650,3.80915,2625.3,2624.7,3.80987]
[1723798286846,3.80897,2625.4,2624.8,24.935707]
[1723798287094,12.55034624,2625.6,2625.0,10.04874]
[1723798287095,6.30494624,2625.6,2625.0,10.04874]
[1723798287392,6.30494624,2625.6,2625.1,3.80935]
[1723798287560,6.30494624,2625.6,2625.2,6.5098]
[1723798287782,2.49620624,2625.6,2625.2,10.31898]
[1723798287964,2.49620624,2625.6,2625.3,1.385927]
[1723798288164,2.49620624,2625.6,2625.3,21.125927]
[1723798288477,2.49620624,2625.6,2625.3,24.934997]
[1723798288666,2.49620624,2625.6,2625.4,6.3205]
[1723798288862,2.49620624,2625.6,2625.4,8.15558014]
[1723798289484,2.49620624,2625.6,2625.4,6.3205]
[1723798290495,6.30486624,2625.6,2625.4,6.3205]
[1723798290853,2.49620624,2625.6,2625.4,6.3205]
[1723798291289,2.49620624,2625.6,2625.4,26.0605]
[1723798291679,6.30485624,2625.6,2625.4,26.0605]
[1723798291991,6.30485624,2625.6,2625.4,19.74]
[1723798295489,3.80879,2625.5,2625.4,19.74]
[1723798296480,8.62894462,2625.5,2625.4,19.74]
[1723798296666,14.77674462,2625.5,2625.4,19.74]
[1723798297292,3.80912,2625.3,2625.0,19.74]
[1723798298351,7.61831,2625.3,2625.0,19.74]
[1723798298605,3.80925,2625.2,2625.0,19.74]
[1723798299642,7.61833,2625.3,2625.0,19.74]
[1723798300763,3.80931,2625.2,2625.0,19.746]
[1723798301111,3.80937,2625.1,2625.0,19.746]
[1723798302155,7.61874,2625.1,2625.0,19.746]
[1723798303078,3.80937,2625.1,2625.0,19.746]
[1723798304557,7.61874,2625.1,2625.0,19.746]
[1723798304743,7.61874,2625.1,2625.0,0.006]
[1723798304744,14.57914009,2625.1,2625.0,0.006]
[1723798305067,18.38851009,2625.1,2625.0,0.006]
[1723798305832,22.19788009,2625.1,2625.0,0.006]
[1723798306279,17.7017,2624.6,2624.5,0.005]
[1723798306582,20.8347,2624.6,2624.5,0.005]
[1723798311591,24.6448,2624.6,2624.5,0.005]
[1723798312180,3.81179,2623.5,2623.2,6.1357]
[1723798312555,3.81179,2623.5,2623.0,9.94809]
[1723798312981,3.81195,2623.4,2623.0,6.1357]
[1723798313185,3.81207,2623.3,2623.0,6.1357]
[1723798313755,3.81232,2623.1,2622.7,6.1357]
[1723798314184,3.88859787,2623.0,2622.7,6.1357]
[1723798314893,3.81232,2623.1,2622.7,6.1357]
[1723798315078,3.81216,2623.2,2622.7,12.53604]
[1723798315282,3.81206,2623.3,2622.7,8.72327]
[1723798315456,3.81229,2623.1,2622.7,8.72327]
[1723798315656,3.81229,2623.1,2622.7,8.72827]
[1723798315858,3.81253,2623.0,2622.7,6.1407]
[1723798316267,3.81253,2623.0,2622.7,25.8807]
[1723798317096,3.81229,2623.1,2622.7,25.8807]
[1723798319521,7.62465,2623.1,2622.7,25.8807]
[1723798320019,3.81244,2623.0,2622.7,25.8807]
[1723798320196,3.81229,2623.1,2622.7,25.8807]
[1723798320915,3.81244,2623.0,2622.7,25.8807]
[1723798321096,3.81229,2623.1,2622.7,25.8807]
[1723798321312,3.81246,2623.0,2622.7,25.8807]
[1723798321497,7.62466,2623.1,2622.7,25.8807]
[1723798322091,3.81229,2623.1,2622.7,25.8807]
[1723798322421,3.8123,2623.1,2622.7,25.8807]
[1723798325111,3.8123,2623.1,2622.7,29.69355]
[1723798325332,3.81215,2623.2,2622.7,29.69355]
[1723798326477,3.81215,2623.2,2622.7,33.50632]
[1723798326628,3.81215,2623.2,2622.7,29.69347]
[1723798328436,3.81215,2623.2,2622.7,33.50625]
[1723798328742,3.81215,2623.2,2622.7,29.69347]
[1723798329333,3.81215,2623.2,2622.7,33.50625]
[1723798329529,3.81215,2623.2,2622.7,29.69347]
[1723798329919,3.81201,2623.3,2622.8,3.81271]
[1723798330739,3.81201,2623.3,2622.8,3.81871]
[1723798331915,3.81231,2623.1,2622.8,0.006]
[1723798332146,7.62468,2623.1,2622.8,0.006]
[1723798332355,3.81231,2623.1,2622.8,0.006]
[1723798332851,3.81159,2623.6,2622.9,26.3795]
[1723798332852,1.81540725,2623.6,2622.9,26.3795]
[1723798333146,3.812,2623.3,2622.9,19.74]
[1723798333317,3.81219,2623.2,2622.9,19.74]
[1723798333518,3.812,2623.3,2622.9,19.74]
[1723798333934,3.81185,2623.4,2622.9,23.55255]
[1723798334133,3.81202,2623.3,2622.9,19.74]
[1723798334841,3.81179,2623.5,2622.9,23.55256]
[1723798334842,3.81184,2623.4,2622.9,23.55256]
[1723798335242,3.812,2623.3,2622.9,19.74]
[1723798335658,3.81214,2623.2,2622.9,19.74]
[1723798336552,3.81206,2623.3,2622.9,19.74]
[1723798337217,3.81186,2623.4,2622.9,19.74]
[1723798338047,3.8117,2623.5,2623.0,3.81242]
[1723798338246,3.81185,2623.4,2622.9,23.55256]
[1723798338564,3.81185,2623.4,2623.0,3.8124]
[1723798338964,3.81185,2623.4,2623.1,19.74]
[1723798340141,7.62381,2623.4,2623.1,19.74]
[1723798340359,3.81213,2623.2,2623.1,19.74]
[1723798341334,7.62426,2623.2,2623.1,19.74]
[1723798341963,8.93226,2623.2,2623.1,19.74]
[1723798343467,9.7370544,2623.2,2623.1,19.74]
[1723798344767,3.81239,2623.1,2622.8,6.6455]
[1723798345228,3.81213,2623.2,2622.8,6.6455]
[1723798345629,3.81213,2623.2,2623.1,0.005]
[1723798348237,4.705343,2623.2,2623.1,0.005]
[1723798352264,3.81213,2623.2,2623.1,0.005]
[1723798352478,8.93209,2623.3,2623.1,0.005]
[1723798352646,3.812,2623.3,2623.1,0.005]
[1723798352846,3.812,2623.3,2623.1,6.3853]
[1723798355260,3.81213,2623.2,2623.1,0.005]
[1723798356065,7.62426,2623.2,2623.1,0.005]
[1723798360793,7.69441787,2623.2,2623.1,0.005]
[1723798361376,21.83332,2623.2,2623.1,0.005]
[1723798362378,23.40267314,2623.2,2623.1,0.005]
[1723798362579,26.30612545,2623.2,2623.1,0.005]
[1723798365298,22.49399545,2623.2,2623.1,0.005]
[1723798367101,23.80199545,2623.2,2623.1,0.005]
[1723798367267,27.61412545,2623.2,2623.1,0.005]
[1723798370035,29.44712545,2623.2,2623.1,0.005]
[1723798371012,29.38266369,2623.2,2623.1,0.005]
[1723798372927,21.56254,2622.8,2622.7,1e-05]
[1723798373231,26.11420879,2622.8,2622.7,1e-05]
[1723798374027,22.30149879,2622.8,2622.7,1e-05]
[1723798375744,3.80844,2622.3,2622.2,6.497]
[1723798378444,7.62202,2622.3,2621.9,19.74]
[1723798378749,7.62202,2622.3,2622.0,19.74]
[1723798378750,3.81368,2622.2,2622.0,19.74]
[1723798379215,3.81373,2622.1,2622.0,19.74]
[1723798381372,8.390196,2622.1,2622.0,19.74]
[1723798381646,7.62746,2622.1,2622.0,19.74]
[1723798382060,3.81373,2622.1,2622.0,19.74]
[1723798383608,7.62746,2622.1,2622.0,19.74]
[1723798387654,3.81367,2622.2,2622.0,19.74]
[1723798387821,5.13613775,2622.5,2622.0,22.36409]
[1723798388022,3.81341,2622.4,2622.1,6.5009]
[1723798388259,3.81341,2622.4,2622.1,7.09781714]
[1723798388559,7.62683,2622.4,2622.1,7.09781714]
[1723798388894,3.81359,2622.2,2622.1,6.5009]
[1723798389449,3.81359,2622.2,2622.1,26.2409]
[1723798390624,3.80759,2622.2,2622.1,26.2409]
[1723798391763,5.12241,2622.4,2622.1,26.2409]
[1723798391764,3.81341,2622.4,2622.1,26.2409]
[1723798393469,1.309,2622.4,2622.1,19.74]
[1723798393658,5.12233,2622.4,2622.1,19.74]
[1723798393986,3.81359,2622.2,2622.1,19.74]
[1723798394183,7.62718,2622.2,2622.1,19.74]
[1723798394957,3.81359,2622.2,2622.1,19.74]
[1723798395159,3.81312,2622.6,2622.2,6.5306]
[1723798398075,6.40191334,2622.8,2622.2,6.5306]
[1723798398076,3.81287,2622.7,2622.2,6.5306]
[1723798398299,5.09291334,2622.8,2622.4,9.95529]
[1723798398463,1.28009334,2622.8,2622.4,9.95529]
[1723798398889,1.28009334,2622.8,2622.5,3.80313]
[1723798399152,3.81224,2623.2,2622.7,10.45778]
[1723798399153,3.81214,2623.2,2622.7,10.45778]
[1723798399581,3.81214,2623.2,2622.7,6.645]
[1723798400092,3.81214,2623.2,2622.4,3.81319]
[1723798400093,0.07615787,2623.1,2622.4,10.03169]
[1723798400290,0.07615787,2623.1,2622.4,6.2185]
[1723798400291,3.81281,2622.8,2622.4,6.2185]
[1723798401760,3.81281,2622.8,2622.4,10.03179]
[1723798405733,3.80781,2622.8,2622.4,10.03179]
[1723798406185,3.80781,2622.8,2622.4,6.2185]
[1723798406373,3.81258,2622.9,2622.4,10.03179]
[1723798406574,3.81258,2622.9,2622.5,1.003179]
[1723798407421,3.81282,2622.8,2622.4,6.2185]
[1723798407824,7.62566,2622.8,2622.4,6.2185]
[1723798408025,7.62562,2622.8,2622.4,6.2185]
[1723798408194,0.77017779,2622.8,2622.4,6.2185]
[1723798408412,6.95187,2623.4,2622.0,19.74]
[1723798408413,7.62712,2622.3,2622.0,19.74]
[1723798408593,3.81356,2622.3,2622.0,19.74]
[1723798410209,3.81353,2622.3,2622.0,19.74]
[1723798410530,3.81325,2622.5,2622.0,27.36767]
[1723798410836,3.81325,2622.5,2622.1,3.81373]
[1723798411127,3.81266,2622.9,2622.1,6.3199]
[1723798411501,3.81266,2622.9,2622.2,6.550243]
[1723798411502,3.81287,2622.7,2622.2,6.550243]
[1723798411654,3.81316,2622.5,2622.1,6.3199]
[1723798412148,3.81287,2622.7,2622.1,10.13349]
[1723798412350,3.81322,2622.5,2622.1,6.3199]
[1723798413308,3.81322,2622.5,2622.1,26.0599]
[1723798414347,3.81332,2622.4,2622.1,26.0599]
[1723798414551,3.81332,2622.4,2622.1,19.74]
[1723798414814,3.81322,2622.5,2622.1,19.74]
[1723798415628,3.81336,2622.4,2622.1,19.74]
[1723798416365,3.81359,2622.2,2622.1,19.74]
[1723798416562,3.81316,2622.5,2622.0,10.06126]
[1723798416738,3.81288,2622.7,2622.0,10.06126]
[1723798416739,7.62585,2622.7,2622.1,3.81362]
[1723798417062,3.81307,2622.6,2622.2,6.2563]
[1723798419236,3.8129,2622.7,2622.2,11.137723]
[1723798420766,3.8029,2622.7,2622.2,11.137723]
[1723798422236,3.8029,2622.7,2622.3,6.3557]
[1723798422431,3.8029,2622.7,2622.4,1.54399414]
[1723798422631,3.81302,2622.6,2622.3,6.3557]
[1723798422868,3.81282,2622.8,2622.3,6.3557]
[1723798422869,3.81287,2622.7,2622.3,6.3557]
[1723798423063,3.81282,2622.8,2622.3,10.16913]
[1723798423234,3.81282,2622.8,2622.3,29.90913]
[1723798423433,3.81282,2622.8,2622.3,26.0957]
[1723798423654,3.81293,2622.7,2622.3,26.0957]
[1723798424229,3.81282,2622.8,2622.3,29.90912]
[1723798425668,3.81282,2622.8,2622.3,26.0957]
[1723798425866,3.81302,2622.6,2622.3,26.0957]
[1723798428156,3.81302,2622.6,2622.4,19.74]
[1723798428745,3.81282,2622.8,2622.4,19.74]
[1723798428936,3.81289,2622.7,2622.4,19.74]
[1723798432585,3.81304,2622.6,2622.4,19.74]
[1723798441754,3.81286,2622.7,2622.4,19.74]
[1723798442268,3.81308,2622.6,2622.4,19.74]
[1723798443295,7.6262,2622.6,2622.4,19.74]
[1723798443513,3.81308,2622.6,2622.4,19.74]
[1723798446356,3.81301,2622.6,2622.4,19.74]
[1723798447402,3.81315,2622.5,2622.4,19.74]
[1723798449218,7.6263,2622.5,2622.4,19.74]
[1723798450597,3.81315,2622.5,2622.4,19.74]
[1723798451997,3.81351,2622.3,2622.1,19.74]
[1723798452578,3.81331,2622.4,2622.1,19.74]
[1723798456928,3.81317,2622.5,2622.1,19.74]
[1723798457078,1.308,2622.7,2622.1,19.74]
[1723798457079,3.81287,2622.7,2622.2,6.6702]
[1723798457703,3.81287,2622.7,2622.2,10.48372]
[1723798457901,3.81287,2622.7,2622.3,19.74]
[1723798458421,3.81251,2623.0,2622.6,6.6823]
[1723798458632,3.81251,2623.0,2622.7,1.049537]
[1723798458773,3.81228,2623.1,2622.6,10.49525]
[1723798458979,3.81222,2623.2,2622.6,10.49525]
[1723798458980,3.81242,2623.0,2622.6,10.49525]
[1723798459508,3.81222,2623.2,2622.7,1.049525]
[1723798459713,3.81245,2623.0,2622.6,6.6823]
[1723798459915,7.625,2623.0,2622.6,6.6823]
[1723798460455,7.62496,2623.0,2622.6,6.6823]
[1723798460795,3.81245,2623.0,2622.6,6.6823]
[1723798463893,3.81228,2623.1,2622.7,19.74]
[1723798464116,5.12021,2623.2,2622.7,23.55284]
[1723798464312,3.81256,2623.0,2622.7,19.74]
[1723798464513,3.81256,2623.0,2622.7,26.039]
[1723798465157,3.81228,2623.1,2622.7,29.85179]
[1723798465996,3.81228,2623.1,2622.7,26.039]
[1723798469527,3.81236,2623.1,2622.7,26.039]
[1723798469708,3.81245,2623.0,2622.8,19.74]
[1723798469900,7.62498,2623.0,2622.8,19.74]
[1723798470079,3.81245,2623.0,2622.8,19.74]
[1723798473726,3.81228,2623.1,2622.8,19.74]
[1723798474026,3.81224,2623.2,2622.9,6.7554]
[1723798474394,3.81148,2623.7,2622.9,6.7554]
[1723798474395,3.81166,2623.6,2622.9,6.7554]
[1723798474596,3.81177,2623.5,2623.1,6.7554]
[1723798475128,3.81142,2623.7,2623.2,10.56752]
[1723798475434,3.81142,2623.7,2623.3,1.437972]
[1723798475642,3.81156,2623.6,2623.2,6.7554]
[1723798476134,7.62324,2623.6,2623.2,6.7554]
[1723798476337,3.81142,2623.7,2623.2,6.7554]
[1723798476638,3.81169,2623.6,2623.2,6.7554]
[1723798477205,3.81171,2623.5,2623.2,6.7554]
[1723798479394,3.81199,2623.3,2622.8,5.12071]
[1723798479634,3.81199,2623.3,2622.9,6.5193]
[1723798482433,3.81199,2623.3,2622.9,10.33186]
[1723798486260,3.81184,2623.4,2622.9,14.14435]
[1723798486420,3.81184,2623.4,2622.9,12.65945114]
[1723798487629,7.62349,2623.5,2623.0,3.81242]
[1723798487814,3.81171,2623.5,2623.0,3.81242]
[1723798488569,7.62349,2623.5,2623.0,3.81242]
[1723798489011,7.62351,2623.5,2623.0,3.81242]
[1723798489215,3.81171,2623.5,2623.0,4.705766]
[1723798489649,7.62351,2623.5,2623.0,4.705766]
[1723798490156,3.81171,2623.5,2623.0,4.705766]
[1723798490524,3.81171,2623.5,2623.0,24.445766]
[1723798491152,7.62348,2623.5,2623.0,24.445766]
[1723798491732,7.62351,2623.5,2623.0,24.445766]
[1723798492573,3.81171,2623.5,2623.2,6.5319]
[1723798494474,3.81122,2623.9,2623.5,10.04399]
[1723798494768,3.81122,2623.9,2623.6,1.135199]
[1723798494972,14.02295,2624.1,2623.5,29.78391]
[1723798495176,3.8109,2624.1,2623.6,3.81154]
[1723798495387,3.8109,2624.1,2623.7,3.81139]
[1723798496534,3.81069,2624.2,2623.7,3.81139]
[1723798496728,3.81064,2624.3,2623.9,6.1323]
[1723798498391,3.81062,2624.3,2623.9,6.1323]
[1723798498681,7.62125,2624.3,2623.9,6.1323]
[1723798498892,3.81062,2624.3,2623.9,6.1323]
[1723798499432,3.81062,2624.3,2623.8,19.74]
[1723798499633,3.81075,2624.2,2623.8,19.74]
[1723798501651,7.62154,2624.2,2623.8,19.74]
[1723798501856,3.81075,2624.2,2623.8,19.74]
[1723798502492,3.81075,2624.2,2623.9,19.74]
[1723798502982,7.62153,2624.2,2623.9,19.74]
[1723798503278,7.62151,2624.2,2623.9,19.74]
[1723798503461,3.81075,2624.2,2623.9,19.74]
[1723798505695,3.8105,2624.4,2624.0,19.74]
[1723798505895,7.62103,2624.4,2624.0,19.69]
[1723798506270,10.08012,2624.6,2624.0,26.0511]
[1723798506472,3.81012,2624.6,2624.1,24.80869]
[1723798506670,3.81012,2624.6,2624.2,6.3611]
[1723798506987,3.80996,2624.7,2624.2,10.17178]
[1723798507185,3.80982,2624.8,2624.3,24.88471335]
[1723798507388,7.61974,2624.8,2624.3,24.80851]
[1723798507608,3.80982,2624.8,2624.3,28.61897]
[1723798507898,5.77690055,2624.9,2624.5,1.308]
[1723798508109,1.96723055,2624.9,2624.6,6.22]
[1723798508274,1.96723055,2624.9,2624.7,19.69]
[1723798510017,13.88302,2624.8,2624.7,19.69]
[1723798511380,3.8102,2624.6,2624.3,19.69]
[1723798512415,3.81028,2624.5,2624.3,19.69]
[1723798512904,3.8102,2624.6,2624.3,19.69]
[1723798514101,7.62042,2624.6,2624.3,19.69]
[1723798514603,3.8102,2624.6,2624.3,19.69]
[1723798516851,10.07332,2624.8,2624.3,19.69]
[1723798517022,3.80992,2624.8,2624.4,6.2745]
[1723798517517,3.80992,2624.8,2624.4,25.9645]
[1723798517977,7.61984,2624.8,2624.4,25.9645]